[Event "1st Serbian League 2022"]
[Site "Vrnjacka Banja"]
[Date "2022.09.25"]
[Round "6.25"]
[White "Ter-Sahakyan, Samvel"]
[Black "Sanal, Vahap"]
[Result "1-0"]
[ECO "B06"]
[WhiteElo "2630"]
[BlackElo "2595"]
[Annotator "TA"]
[PlyCount "77"]
[EventDate "2022.09.20"]
[EventType "team-tourn"]
[EventCountry "SRB"]
[SourceTitle "playchess.com"]
[Source "ChessBase"]
[SourceQuality "1"]
[TimeControl "40/5400+30:1800+30"]

{[%evp 9,77,39,43,32,78,68,114,106,115,81,74,76,118,91,104,102,111,104,138,133,152,139,141,135,146,112,125,114,132,81,95,98,108,89,105,73,100,97,90,86,88,81,81,81,81,86,84,85,91,78,95,102,122,112,241,229,203,229,273,264,241,256,254,235,427,427,592,583,610,379]} 1. e4 {[%emt 0:00:05]} Nc6 {[%emt 0:02:37]} 2. Nf3 {[%emt 0:04:48]} d6 {[%emt 0:00:33]} 3. d4 {[%emt 0:00:20][%cal Bd2d4,Bd4d5][%mdl 32]} Nf6 {[%emt 0:00:14]} 4. Nc3 {[%emt 0:00:28]} g6 {[%emt 0:00:11]} 5. Be3 {[%emt 0:02:35]} Bg7 {[%emt 0:00:22]} 6. Qd2 {[%emt 0:01:33] B06: Modern Defence.} Bg4 {[%emt 0:02:27]} (6... O-O $14 {is superior.}) 7. d5 $16 {[%emt 0:04:44]} Ne5 {[%emt 0:02:21]} (7... Nb8 $14) 8. Nxe5 {[%emt 0:12:51] White is better.} dxe5 {[%emt 0:00:09] [#]} 9. Bc4 $146 {[%emt 0:01:40]} ({Predecessor:} 9. f3 Bd7 10. O-O-O O-O 11. Kb1 a6 12. g4 Rb8 13. Be2 b5 14. a3 a5 15. Na2 {½-½ (45) Peraza Balleste,O-Carlsen,T DESC email 2014}) 9... a6 {[%emt 0:02:57]} 10. f3 {[%emt 0:07:53]} Bc8 {[%emt 0:02:46]} 11. a4 {[%emt 0:02:18][%cal Ba2a4,Ba4a5][%mdl 32]} Qd6 {[%emt 0:00:58]} 12. O-O {[%emt 0:02:05]} O-O {[%emt 0:00:15]} 13. a5 {[%emt 0:00:58]} Kh8 {[%emt 0:12:04]} 14. Na4 {[%emt 0:04:58]} Qd8 {[%emt 0:01:55]} 15. Rfd1 {[%emt 0:00:58]} Ne8 {[%emt 0:01:16]} 16. Nc5 {[%emt 0:10:54]} Nd6 {[%emt 0:00:26]} 17. Bd3 {[%emt 0:02:10]} Qe8 {[%emt 0:01:22]} 18. c4 {[%emt 0:01:01]} f5 {[%emt 0:05:07]} 19. b4 {[%emt 0:00:04]} ({White should try} 19. Bh6) 19... f4 {[%emt 0:00:48]} 20. Bf2 {[%emt 0:00:03]} g5 {[%emt 0:00:09]} 21. h3 {[%emt 0:00:40] Inhibits g4.} h5 {[%emt 0:01:57]} 22. Kf1 {[%emt 0:00:21][%cal Bg1f1,Bf1e2,Be2d1,Bd1c2,Bc2b1][%mdl 32]} Qg6 {[%emt 0:01:05]} 23. Ke2 {[%emt 0:00:07]} Nf7 {[%emt 0:10:34]} 24. Rh1 {[%emt 0:02:16]} Kg8 {[%emt 0:00:07]} 25. Kd1 {[%emt 0:05:24]} Re8 {[%emt 0:06:18]} 26. Kc2 {[%emt 0:01:26]} e6 {[%emt 0:01:07]} 27. Ra3 {[%emt 0:03:52]} Qf6 {[%emt 0:04:51]} 28. Kb1 {[%emt 0:00:36]} Bf8 {[%emt 0:08:05]} 29. Rc1 {[%emt 0:00:53]} h4 {[%emt 0:06:27]} 30. Qb2 {[%emt 0:01:46]} Bg7 {[%emt 0:04:42]} 31. Bc2 {[%emt 0:02:36] White has more active pieces. The black rooks are badly placed.} exd5 {[%emt 0:02:20] A mistake that costs the game.} (31... Rb8 $16 32. Ba4 Rd8) 32. cxd5 $18 {[%emt 0:00:47]} Nd6 {[%emt 0:00:22]} 33. Ba4 {[%emt 0:00:35]} Nb5 {[%emt 0:00:33]} 34. Bxb5 {[%emt 0:02:39]} axb5 {[%emt 0:00:02]} 35. Rac3 {[%emt 0:00:07]} c6 {[%emt 0:01:18]} 36. dxc6 {[%emt 0:04:40]} Qxc6 {[%emt 0:00:36] [#]} (36... bxc6 37. Rd3 Bf8 38. Qb3+ Qf7) 37. Na4 $1 {[%emt 0:01:18][%cal Bc5a4,Ba4b6,Bb6d5][%mdl 544] White is clearly winning.} Qe6 {[%emt 0:01:01]} (37... Qd6 38. Nb6) 38. Nb6 {[%emt 0:00:08]} Rb8 {[%emt 0:00:04]} 39. Nd5 {[%emt 0:01:43] Weighted Error Value: White=0.07 (flawless) /Black=0.30} 1-0

[Event "1st Serbian League 2022"]
[Site "Vrnjacka Banja"]
[Date "2022.09.25"]
[Round "6.26"]
[White "Gurel, Ediz"]
[Black "Stojanovic, Mihajlo"]
[Result "1-0"]
[ECO "C07"]
[WhiteElo "2437"]
[BlackElo "2494"]
[Annotator "TA"]
[PlyCount "73"]
[EventDate "2022.09.20"]
[EventType "team-tourn"]
[EventCountry "SRB"]
[SourceTitle "playchess.com"]
[Source "ChessBase"]
[SourceQuality "1"]
[TimeControl "40/5400+30:1800+30"]

{[%evp 14,73,20,22,13,13,14,14,27,14,21,9,12,5,19,13,51,26,45,47,33,14,42,9,36,21,52,25,20,23,15,23,21,18,13,18,50,28,62,70,96,91,223,157,122,124,439,258,266,267,344,329,503,501,587,577,12818,6816,29966,12836,29985,29986]} 1. e4 {[%emt 0:00:05]} e6 {[%emt 0:00:40]} 2. d4 {[%emt 0:00:05]} d5 {[%emt 0:00:06]} 3. Nd2 {[%emt 0:00:04]} c5 {[%emt 0:00:06]} 4. Ngf3 {[%emt 0:00:19]} cxd4 {[%emt 0:00:08]} 5. exd5 {[%emt 0:01:34]} Qxd5 {[%emt 0:00:05]} 6. Bc4 {[%emt 0:00:03]} Qd8 {[%emt 0:00:10]} 7. O-O {[%emt 0:00:13]} Nc6 {[%emt 0:00:05]} 8. Nb3 {[%emt 0:00:15]} a6 {[%emt 0:00:03] C07: French Tarrasch: 3...c5, 4 Ngf3 and 4 exd5 Qxd5.} 9. Nbxd4 {[%emt 0:00:30]} Nxd4 {[%emt 0:00:06]} 10. Nxd4 {[%emt 0:00:03]} Qc7 {[%emt 0:00:07] Against Bf4. The position is equal.} 11. Bb3 {[%emt 0:01:18] 11.Bd3 is more advanced technology.} Bd6 {[%emt 0:00:07]} 12. h3 {[%emt 0:01:16]} Nf6 {[%emt 0:03:00]} 13. Re1 {[%emt 0:07:49] Threatening Nf5.} O-O {[%emt 0:00:48]} 14. Bg5 {[%emt 0:03:08]} Bd7 {[%emt 0:00:58] [#]} 15. Qd2 $146 {[%emt 0:15:22]} ({Predecessor:} 15. Bxf6 gxf6 16. c3 Kh8 17. Qf3 f5 18. Rad1 Rg8 19. Kf1 Rg6 20. Qd3 Rag8 21. Nf3 Bc5 22. Ne5 Bc6 23. Nxg6+ hxg6 24. Qg3 Kg7 25. Qxc7 {1-0 (25) Jary,S (2275)-Postnikov,D (2360) Chess.com INT 2022}) 15... Rad8 {[%emt 0:08:18]} 16. Rad1 {[%emt 0:08:16]} Bc8 {[%emt 0:00:24]} 17. Qe3 {[%emt 0:14:00]} Rfe8 {[%emt 0:25:50]} 18. Qf3 {[%emt 0:07:06]} (18. c3 $5 {[%cal Rg5f6]}) 18... Be7 {[%emt 0:10:19]} 19. c3 {[%emt 0:04:17]} Qc5 {[%emt 0:01:59]} 20. Bf4 {[%emt 0:02:50]} Bd6 {[%emt 0:01:22]} 21. Bxd6 {[%emt 0:04:43]} Rxd6 {[%emt 0:00:36]} 22. Qg3 {[%emt 0:00:07]} Rdd8 {[%emt 0:05:26]} 23. Re5 {[%emt 0:02:08]} Qf8 {[%emt 0:00:10]} 24. Rde1 {[%emt 0:01:06][%cal Bd1e1,Be1e3,Be3f3,Bf3f6][%mdl 32]} g6 {[%emt 0:14:08]} 25. Qh4 {[%emt 0:03:18]} (25. R5e3 {seems wilder.} Qd6 26. Qg5 Kg7 27. Rf3) 25... Qg7 {[%emt 0:03:53]} 26. Rc5 {[%emt 0:05:28] White is much more active.} Re7 {[%emt 0:05:43]} 27. Re3 {[%emt 0:08:17]} Kf8 {[%emt 0:10:03]} (27... Red7 $16) 28. Rf3 {[%emt 0:02:48]} Nd5 {[%emt 0:01:05]} 29. Qe4 $36 {[%emt 0:02:40][%mdl 2048] White has strong initiative.} Nf6 $2 {[%emt 0:05:09][%mdl 8192] [#]} (29... Ke8 $16 {is tougher.} 30. Qe2 (30. Bxd5 exd5 31. Qh4 h5 $14) 30... Nb6) 30. Rxc8 $1 {[%emt 0:01:13][%mdl 512]} Rxc8 $18 {[%emt 0:00:52]} (30... Nxe4 $2 31. Rxd8+ Re8 32. Nxe6+ Ke7 33. Rxe8+ Kxe8 34. Nxg7+ $18) 31. Qe5 {[%emt 0:00:06]} Kg8 {[%emt 0:01:46]} 32. Rxf6 {[%emt 0:00:53]} Kh8 {[%emt 0:01:12]} (32... a5 {is a better defense.} 33. a4 b6) 33. g4 {[%emt 0:02:03]} h6 {[%emt 0:00:29]} 34. h4 {[%emt 0:00:16][%cal Bh3h4,Bh4g5][%mdl 32]} Rc5 {[%emt 0:00:32]} 35. Qxc5 {[%emt 0:00:04]} Qxf6 {[%emt 0:00:08]} 36. g5 {[%emt 0:00:02] [#] White wants to mate with Qc8+.} hxg5 {[%emt 0:01:56]} 37. hxg5 {[%emt 0:00:03] Weighted Error Value: White=0.19 (very precise) /Black=0.77} 1-0

[Event "1st Serbian League 2022"]
[Site "Vrnjacka Banja"]
[Date "2022.09.25"]
[Round "6.27"]
[White "Pezelj, Novak"]
[Black "Markus, Robert"]
[Result "1/2-1/2"]
[ECO "C01"]
[WhiteElo "2496"]
[BlackElo "2615"]
[Annotator "TA"]
[PlyCount "24"]
[EventDate "2022.09.20"]
[EventType "team-tourn"]
[EventCountry "SRB"]
[SourceTitle "playchess.com"]
[Source "ChessBase"]
[SourceQuality "1"]
[TimeControl "40/5400+30:1800+30"]

{[%evp 11,24,14,31,8,13,5,11,2,2,10,0,0,0,6,13]} 1. e4 {[%emt 0:00:08]} e6 {[%emt 0:00:11]} 2. d4 {[%emt 0:00:24]} d5 {[%emt 0:00:07]} 3. Nc3 {[%emt 0:00:24]} Bb4 {[%emt 0:00:09]} 4. exd5 {[%emt 0:01:15]} exd5 {[%emt 0:00:07]} 5. Bd3 {[%emt 0:01:07]} Ne7 {[%emt 0:02:32]} 6. Nge2 {[%emt 0:00:47]} Bf5 {[%emt 0:04:16]} 7. O-O {[%emt 0:03:56] C01: French: Exchange Variation.} (7. a3 $5 {[%cal Ra3b4]} Bxc3+ 8. bxc3 $11) 7... O-O {[%emt 0:01:58] The position is equal.} 8. a3 {[%emt 0:03:40]} Bxc3 {[%emt 0:01:29]} 9. Nxc3 {[%emt 0:00:20]} Bxd3 {[%emt 0:03:25]} 10. Qxd3 {[%emt 0:00:30]} Nbc6 {[%emt 0:01:21]} 11. Bf4 {[%emt 0:08:03]} Qd7 {[%emt 0:03:07] [#]} 12. Rfe1 $146 {[%emt 0:01:22]} ({Predecessor:} 12. Rae1 a6 13. Nb1 Rfe8 14. Nd2 Ng6 15. Bg3 Nce7 16. Re2 Nf5 17. Rfe1 Rxe2 18. Rxe2 c6 19. c3 f6 20. Qf3 Kf7 {½-½ (20) Salai,L (2373)-Voloshin,L (2466) Czech Republic 2006}) 12... Ng6 {[%emt 0:17:49] Not much happened in this game.  Weighted Error Value: White=0.08 (flawless) /Black=0.02 (flawless)} 1/2-1/2

[Event "1st Serbian League 2022"]
[Site "Vrnjacka Banja"]
[Date "2022.09.25"]
[Round "6.28"]
[White "Solak, Dragan"]
[Black "Ratkovic, Milovan"]
[Result "1-0"]
[ECO "B33"]
[WhiteElo "2592"]
[BlackElo "2411"]
[Annotator "TA"]
[PlyCount "83"]
[EventDate "2022.09.20"]
[EventType "team-tourn"]
[EventCountry "SRB"]
[SourceTitle "playchess.com"]
[Source "ChessBase"]
[SourceQuality "1"]
[TimeControl "40/5400+30:1800+30"]

{[%evp 22,83,21,7,6,4,11,12,10,-6,1,0,63,58,56,77,66,29,38,23,30,28,31,43,38,18,33,29,37,55,89,95,106,85,122,113,110,113,247,223,360,360,343,342,403,389,443,418,425,429,407,431,418,431,444,432,460,439,455,455,441,389,529,378]} 1. e4 {[%emt 0:01:58]} c5 {[%emt 0:00:17]} 2. Nc3 {[%emt 0:03:30]} e6 {[%emt 0:00:55]} 3. Nf3 {[%emt 0:05:32]} Nc6 {[%emt 0:00:41]} 4. d4 {[%emt 0:01:16]} cxd4 {[%emt 0:00:42]} 5. Nxd4 {[%emt 0:00:04]} Nf6 {[%emt 0:00:49]} 6. Ndb5 {[%emt 0:00:49]} d6 {[%emt 0:00:51]} 7. Bf4 {[%emt 0:00:22]} e5 {[%emt 0:00:36]} 8. Bg5 {[%emt 0:00:05]} a6 {[%emt 0:00:41]} 9. Na3 {[%emt 0:00:14][%cal Bb5a3,Ba3c2,Bc2e3,Be3d5][%mdl 32]} b5 {[%emt 0:01:09]} 10. Nd5 {[%emt 0:02:01]} Be7 {[%emt 0:00:42]} 11. Bxf6 {[%emt 0:00:07]} Bxf6 {[%emt 0:00:37]} 12. c4 {[%emt 0:03:25]} b4 {[%emt 0:03:21] 12...0-0 is the fancy move. B33: Sicilian: Pelikan and Sveshnikov Variations.} 13. Nc2 {[%emt 0:01:59]} O-O {[%emt 0:00:41]} 14. g3 {[%emt 0:00:29]} a5 {[%emt 0:24:29] The position is equal.} 15. h4 {[%emt 0:03:23]} Be6 {[%emt 0:08:19]} 16. Bh3 {[%emt 0:12:29]} Ne7 {[%emt 0:12:15]} ({Better is} 16... Ra7 $11) 17. Nxf6+ $14 {[%emt 0:05:23]} gxf6 {[%emt 0:00:07]} 18. Ne3 {[%emt 0:02:04]} Qd7 {[%emt 0:03:11]} 19. Bg4 {[%emt 0:12:33] [#]} f5 $146 {[%emt 0:13:42]} ({Predecessor:} 19... Rac8 20. b3 Kh8 21. Qf3 Kg7 22. O-O-O Rh8 23. h5 h6 24. Kd2 a4 25. Ke2 axb3 26. axb3 Ra8 {1-0 (42) Eswaran,A (2244)-Ardila,O (2003) Chess.com INT 2021}) 20. exf5 {[%emt 0:02:50]} Nxf5 {[%emt 0:00:43]} 21. Nd5 {[%emt 0:05:53] [#] Nf6+ is the strong threat.} Qd8 {[%emt 0:02:41] Inhibits Nf6+.} 22. Bxf5 {[%emt 0:02:47]} Bxf5 {[%emt 0:00:07]} 23. Qh5 {[%emt 0:13:09]} Be6 {[%emt 0:24:24]} 24. Rd1 {[%emt 0:00:21]} Rc8 {[%emt 0:00:00]} 25. b3 $36 {[%emt 0:04:19][%mdl 2048] White has the initiative.} Kh8 {[%emt 0:00:00] [#]} 26. Qh6 $1 {[%emt 0:01:46] Strongly threatening Nf6.} f6 {[%emt 0:00:00]} 27. O-O {[%emt 0:00:42] White has more active pieces.} Rc5 {[%emt 0:00:00]} 28. Rd3 {[%emt 0:04:02]} Rf7 {[%emt 0:00:00]} 29. Rfd1 {[%emt 0:01:36][%cal Od5f4,Bf1d1,Bd1d5,Bd5d6,Bd6d8,Bd8a8,Ba8a5,Ba5a4,Ba4b4,Bb4c4][%mdl 32] Black must now prevent Nf4!} Bxd5 {[%emt 0:00:30] This move loses the game for Black.} (29... Bf5 $16 {was necessary.}) 30. Rxd5 $18 {[%emt 0:00:07]} Rxd5 {[%emt 0:01:52]} (30... Rc6 $142 31. Qd2 Rd7) 31. Rxd5 $16 {[%emt 0:00:06][%mdl 4096] Endgame KQR-KQR} Qc7 {[%emt 0:00:47]} 32. Qd2 {[%emt 0:01:04]} Kg7 {[%emt 0:00:24]} 33. Rxd6 {[%emt 0:00:24]} Re7 {[%emt 0:00:22]} 34. Qd5 {[%emt 0:00:55]} Qc8 {[%emt 0:01:01]} 35. Rd8 {[%emt 0:03:17]} Qe6 {[%emt 0:00:30]} 36. Qxe6 {[%emt 0:00:15]} Rxe6 $18 {[%emt 0:00:05] KR-KR} 37. Ra8 {[%emt 0:00:16] Prevents Ra6.} Rd6 {[%emt 0:00:40]} 38. Rxa5 {[%emt 0:00:11]} Rd2 {[%emt 0:00:18]} 39. Ra4 {[%emt 0:00:40]} f5 {[%emt 0:00:13]} 40. Rxb4 {[%emt 0:00:52]} Rxa2 {[%emt 0:00:04]} 41. c5 {[%emt 0:31:49]} Kf6 {[%emt 0:31:02]} 42. Rc4 {[%emt 0:01:44] Weighted Error Value: White=0.04 (flawless) /Black=0.29 (precise)} 1-0

[Event "1st Serbian League 2022"]
[Site "Vrnjacka Banja"]
[Date "2022.09.25"]
[Round "6.29"]
[White "Ratkovic, Miloje"]
[Black "Kovacevic, Aleksandar"]
[Result "1-0"]
[ECO "D32"]
[WhiteElo "2498"]
[BlackElo "2471"]
[Annotator "TA"]
[PlyCount "91"]
[EventDate "2022.09.20"]
[EventType "team-tourn"]
[EventCountry "SRB"]
[SourceTitle "playchess.com"]
[Source "ChessBase"]
[SourceQuality "1"]
[TimeControl "40/5400+30:1800+30"]

{[%evp 16,91,6,15,12,18,28,25,27,26,28,39,39,37,24,19,37,11,13,8,14,11,10,7,19,0,0,0,5,16,6,8,32,31,30,25,33,32,36,23,116,114,244,237,234,174,175,175,175,175,175,175,222,227,225,225,225,223,207,162,175,148,180,168,193,104,107,113,108,106,113,114,100,102,818,784,1807,1831]} 1. d4 {[%emt 0:00:04]} Nf6 {[%emt 0:00:20]} 2. Nf3 {[%emt 0:00:17]} e6 {[%emt 0:00:50]} 3. e3 {[%emt 0:00:10]} c5 {[%emt 0:00:37]} 4. c4 {[%emt 0:00:09]} d5 {[%emt 0:00:45]} 5. cxd5 {[%emt 0:00:14]} exd5 {[%emt 0:02:04]} 6. Nc3 {[%emt 0:06:11]} Nc6 {[%emt 0:02:23]} 7. Bb5 {[%emt 0:00:35]} cxd4 {[%emt 0:00:31] is more profitable than 7...Bd6 at the moment.} 8. Nxd4 {[%emt 0:03:22]} Bd7 {[%emt 0:00:41]} 9. O-O {[%emt 0:00:21]} Bd6 {[%emt 0:03:58] D32: Tarrasch Defence: Sidelines and lines without g3.} 10. Nf3 {[%emt 0:03:46]} (10. e4 {is more complex.} dxe4 11. Bg5 O-O 12. Nxe4 Be7 13. Bxf6 Bxf6 14. Nxc6 bxc6 15. Nxf6+ Qxf6 16. Bc4) 10... a6 {[%emt 0:04:03]} 11. Bxc6 {[%emt 0:06:13]} Bxc6 {[%emt 0:03:37] White has an edge.} 12. b3 {[%emt 0:02:41]} O-O {[%emt 0:00:53]} 13. Bb2 {[%emt 0:00:27]} Re8 {[%emt 0:04:37]} 14. Qd4 {[%emt 0:05:57]} Qe7 {[%emt 0:08:04]} 15. Rfd1 {[%emt 0:04:03]} Rad8 {[%emt 0:06:26]} 16. Rac1 {[%emt 0:27:41] [#]} Qf8 $146 {[%emt 0:01:45]} ({Predecessor:} 16... h6 17. Ne2 Ba3 18. Ng3 Bxb2 19. Qxb2 Ne4 20. Nf5 Qf8 21. N3d4 Bd7 22. Rc7 Bxf5 23. Nxf5 {1-0 (74) Cheparinov,I (2687)-Sek,K (2446) Moscow 2019}) 17. Qh4 {[%emt 0:17:33]} Ne4 {[%emt 0:06:53]} 18. Nd4 {[%emt 0:03:22]} Nxc3 {[%emt 0:13:26]} 19. Bxc3 {[%emt 0:01:47][%cal Bb2c3,Bc3a5,Ba5b6,Bb6a7,Ba7d4][%mdl 32]} Bd7 {[%emt 0:00:14]} 20. Nf3 {[%emt 0:03:00]} Bf5 {[%emt 0:08:40]} 21. Ba5 {[%emt 0:05:12] aiming for Nd4.} Rd7 {[%emt 0:02:47]} 22. Nd4 {[%emt 0:00:37]} Re4 {[%emt 0:08:02]} 23. f4 $1 {[%emt 0:01:09]} Bg6 {[%emt 0:00:14]} (23... Be6 $5) 24. Qh3 $1 {[%emt 0:01:16]} f5 $1 {[%emt 0:00:55]} 25. Bb6 {[%emt 0:06:53] Prevents Bc5.} Ba3 {[%emt 0:12:21]} 26. Rc2 {[%emt 0:00:00]} Qd6 {[%emt 0:08:24]} 27. Rc8+ {[%emt 0:00:00]} Kf7 {[%emt 0:00:00]} (27... Re8 $11 {remains equal.} 28. Rxe8+ Bxe8) 28. Ba7 $1 $16 {[%emt 0:00:00] White is more active.} Qe7 {[%emt 0:00:00]} (28... Re8 $16 29. Nxf5 Qe6 30. Rxe8 Qxe8) 29. Nf3 $1 $18 {[%emt 0:01:08] And now Ng5+ would win.} ({Don't play} 29. Nxf5 $6 Qe6 30. g4 b6 $16) 29... h6 {[%emt 0:00:00] Against Ng5+} 30. Ne5+ {[%emt 0:00:43]} Rxe5 {[%emt 0:00:00]} 31. fxe5 {[%emt 0:00:06]} Qxe5 {[%emt 0:00:05]} 32. Bd4 {[%emt 0:00:18]} Qe4 {[%emt 0:00:11]} 33. Qf3 {[%emt 0:00:48]} Bd6 {[%emt 0:02:37]} (33... Bb4 {keeps fighting.} 34. Qf2 Bd6) 34. Qxe4 {[%emt 0:00:10] Chess con chili.} fxe4 {[%emt 0:00:07]} 35. Rf1+ {[%emt 0:00:11]} Ke6 {[%emt 0:00:01]} 36. Rg8 {[%emt 0:01:30]} Be5 {[%emt 0:00:03]} 37. Rd1 {[%emt 0:00:30]} Bf7 {[%emt 0:00:56] [#]} 38. Rc8 {[%emt 0:00:19]} Bh5 {[%emt 0:00:43]} 39. Rd2 {[%emt 0:00:03]} Bd6 {[%emt 0:00:14]} 40. Rg8 {[%emt 0:00:38]} ({Better is} 40. Rf2 $18) 40... Rc7 $16 {[%emt 0:00:24]} 41. Rxg7 {[%emt 0:11:05]} Rc1+ {[%emt 0:01:26]} 42. Kf2 {[%emt 0:00:07] Black must now prevent g4.} Bb4 {[%emt 0:02:41] [#]} 43. Rh7 $1 {[%emt 0:01:56]} Kf5 {[%emt 0:13:30]} 44. Rxh6 {[%emt 0:03:25]} Bg4 {[%emt 0:05:29][%mdl 8192] [#]} (44... Kg5 $16 45. Rxh5+ Kxh5) 45. h4 $1 $18 {[%emt 0:03:12][%csl Gd4][%cal Rh6f6]} Bd1 {[%emt 0:00:05] [#]} (45... Rc6 46. Rxc6) 46. Kg3 $1 {[%emt 0:01:31] Weighted Error Value: White=0.08 (flawless) /Black=0.14 (very precise)} 1-0

[Event "1st Serbian League 2022"]
[Site "Vrnjacka Banja"]
[Date "2022.09.25"]
[Round "6.30"]
[White "Brenjo, Slavisa"]
[Black "Dimic, Pavle"]
[Result "1/2-1/2"]
[ECO "B88"]
[WhiteElo "2409"]
[BlackElo "2352"]
[Annotator "TA"]
[PlyCount "39"]
[EventDate "2022.09.20"]
[EventType "team-tourn"]
[EventCountry "SRB"]
[SourceTitle "playchess.com"]
[Source "ChessBase"]
[SourceQuality "1"]
[TimeControl "40/5400+30:1800+30"]

{[%evp 20,26,19,19,39,2,18,-14,-20]} 1. e4 {[%emt 0:00:06]} c5 {[%emt 0:00:32]} 2. Nf3 {[%emt 0:00:11]} d6 {[%emt 0:00:06]} 3. d4 {[%emt 0:00:07]} cxd4 {[%emt 0:00:06]} 4. Nxd4 {[%emt 0:00:07]} Nf6 {[%emt 0:00:07]} 5. Nc3 {[%emt 0:00:08]} Nc6 {[%emt 0:00:06]} 6. Bc4 {[%emt 0:01:15]} e6 {[%emt 0:00:08]} 7. Be3 {[%emt 0:00:35]} a6 {[%emt 0:00:20]} 8. Bb3 {[%emt 0:00:49]} Qc7 {[%emt 0:01:06]} 9. f4 {[%emt 0:02:28][%cal Bf2f4,Bf4f5][%mdl 32]} Be7 {[%emt 0:00:49] 9...Be7 has lost popularity.} 10. O-O {[%emt 0:03:17] has lost popularity (10.Qf3).} O-O {[%emt 0:00:20]} 11. f5 {[%emt 0:09:13][%cal Rf5e6]} Kh8 {[%emt 0:02:07] B88: Sicilian: Sozin Attack.} 12. Qf3 {[%emt 0:09:23]} Bd7 {[%emt 0:09:46]} 13. Qh3 {[%emt 0:09:32][%cal Rf5e6]} Nxd4 {[%emt 0:08:46] [#] A balanced but interesting game.  Weighted Error Value: White=0.24 (precise) /Black=0.10 (very precise)} {Predecessor:} 14. Bxd4 $146 e5 15. Bf2 Bc6 16. Rfe1 b5 17. Bh4 b4 18. Bxf6 Bxf6 19. Nd5 Bxd5 20. Bxd5 {½-½ (36) Van de Beld,D-Van Kooten,L Hengelo 1995} 1/2-1/2